[Event "Late-Titled-Tuesday-Blitz-July-09-2024"]
[Site "Chess.com"]
[Date "2024.07.09"]
[Round "1"]
[White "Richardmaster"]
[Black "baki83"]
[Result "0-1"]
[WhiteElo "2436"]
[BlackElo "2824"]
[TimeControl "180+1"]
[EndTime "14:06:14 PDT"]
[Termination "baki83 won by resignation"]

1. e4 {[%clk 0:02:57.9]} 1... c5 {[%clk 0:02:20.1]} 2. Nf3 {[%clk 0:02:56.2]}
2... d6 {[%clk 0:02:19.6]} 3. Nc3 {[%clk 0:02:55.3]} 3... Nf6 {[%clk 0:02:19]}
4. e5 {[%clk 0:02:55.3]} 4... dxe5 {[%clk 0:02:19]} 5. Nxe5 {[%clk 0:02:56.2]}
5... a6 {[%clk 0:02:18.9]} 6. g3 {[%clk 0:02:55.8]} 6... Qd6 {[%clk 0:02:18.6]}
7. Nf3 {[%clk 0:02:55]} 7... Nc6 {[%clk 0:02:18]} 8. d3 {[%clk 0:02:51.7]} 8...
e5 {[%clk 0:02:18.2]} 9. Bg2 {[%clk 0:02:50.5]} 9... Bg4 {[%clk 0:02:17.5]} 10.
h3 {[%clk 0:02:41.4]} 10... Bh5 {[%clk 0:02:17.5]} 11. Be3 {[%clk 0:02:08.7]}
11... Be7 {[%clk 0:02:14.3]} 12. O-O {[%clk 0:02:01.8]} 12... O-O {[%clk
0:02:12.8]} 13. g4 {[%clk 0:01:43.7]} 13... Bg6 {[%clk 0:02:12.3]} 14. Nd2
{[%clk 0:01:44.2]} 14... Qc7 {[%clk 0:02:07.3]} 15. a4 {[%clk 0:01:42.3]} 15...
Rad8 {[%clk 0:02:06.9]} 16. Nc4 {[%clk 0:01:35.7]} 16... e4 {[%clk 0:02:01.1]}
17. g5 {[%clk 0:01:20.3]} 17... exd3 {[%clk 0:02:00.8]} 18. gxf6 {[%clk
0:01:12.7]} 18... dxc2 {[%clk 0:02:00.7]} 19. Qg4 {[%clk 0:01:00]} 19... Bxf6
{[%clk 0:01:59]} 20. Nd5 {[%clk 0:00:58]} 20... Rxd5 {[%clk 0:01:58.3]} 21. Bxd5
{[%clk 0:00:58.3]} 21... Nb4 {[%clk 0:01:31.7]} 22. Be4 {[%clk 0:00:52.9]} 22...
b5 {[%clk 0:01:29.6]} 23. axb5 {[%clk 0:00:45]} 23... axb5 {[%clk 0:01:29.3]}
24. Bxg6 {[%clk 0:00:42.9]} 24... hxg6 {[%clk 0:01:28.8]} 25. Qg3 {[%clk
0:00:25.1]} 25... Qxg3+ {[%clk 0:01:27.3]} 26. fxg3 {[%clk 0:00:26]} 26... bxc4
{[%clk 0:01:20.2]} 27. Bxc5 {[%clk 0:00:25.8]} 27... Rb8 {[%clk 0:01:13.7]} 28.
Bxb4 {[%clk 0:00:23.4]} 28... Rxb4 {[%clk 0:01:13]} 29. Rac1 {[%clk 0:00:19.7]}
29... Rxb2 {[%clk 0:01:12.7]} 30. Kg2 {[%clk 0:00:18.1]} 30... Bg5 {[%clk
0:01:12.4]} 31. Kf3 {[%clk 0:00:17.2]} 31... Bxc1 {[%clk 0:01:11.9]} 32. Rxc1
{[%clk 0:00:18.1]} 32... f5 {[%clk 0:01:09.7]} 33. Ke2 {[%clk 0:00:17.3]} 33...
Kf7 {[%clk 0:01:07.7]} 34. Kd2 {[%clk 0:00:16.2]} 34... Rb3 {[%clk 0:01:07.7]}
35. g4 {[%clk 0:00:16.2]} 35... Rxh3 {[%clk 0:01:07.4]} 36. gxf5 {[%clk
0:00:16.5]} 36... gxf5 {[%clk 0:01:07.8]} 37. Kxc2 {[%clk 0:00:17.4]} 37... Kf6
{[%clk 0:01:07.4]} 0-1

[Event "Late-Titled-Tuesday-Blitz-July-09-2024"]
[Site "Chess.com"]
[Date "2024.07.09"]
[Round "1"]
[White "grzechu96"]
[Black "Veleamater"]
[Result "1-0"]
[WhiteElo "2800"]
[BlackElo "2431"]
[TimeControl "180+1"]
[EndTime "14:06:14 PDT"]
[Termination "grzechu96 won by checkmate"]

1. e4 {[%clk 0:03:00.9]} 1... d6 {[%clk 0:03:00]} 2. d4 {[%clk 0:02:59.8]} 2...
g6 {[%clk 0:03:00.1]} 3. Nf3 {[%clk 0:02:59.3]} 3... Bg7 {[%clk 0:02:59.1]} 4.
Be3 {[%clk 0:02:59.7]} 4... Nf6 {[%clk 0:02:58.8]} 5. Nc3 {[%clk 0:02:59.5]}
5... O-O {[%clk 0:02:58.9]} 6. Qd2 {[%clk 0:02:59.3]} 6... Nc6 {[%clk
0:02:58.6]} 7. d5 {[%clk 0:02:58.9]} 7... Ne5 {[%clk 0:02:58.4]} 8. Nxe5 {[%clk
0:02:58.2]} 8... dxe5 {[%clk 0:02:59.3]} 9. Bc4 {[%clk 0:02:43.1]} 9... Ne8
{[%clk 0:02:59.1]} 10. f3 {[%clk 0:02:41.4]} 10... Nd6 {[%clk 0:02:59.2]} 11.
Bb3 {[%clk 0:02:41.9]} 11... f5 {[%clk 0:02:58]} 12. O-O-O {[%clk 0:02:36.6]}
12... f4 {[%clk 0:02:57.1]} 13. Bf2 {[%clk 0:02:35.9]} 13... a6 {[%clk 0:02:57]}
14. h4 {[%clk 0:02:34.3]} 14... h6 {[%clk 0:02:54.4]} 15. Kb1 {[%clk 0:02:32.4]}
15... Kh7 {[%clk 0:02:47.4]} 16. Ne2 {[%clk 0:02:29.9]} 16... b5 {[%clk
0:02:43.4]} 17. Nc1 {[%clk 0:02:28.4]} 17... Bd7 {[%clk 0:02:42.9]} 18. Nd3
{[%clk 0:02:27.9]} 18... a5 {[%clk 0:02:42]} 19. a3 {[%clk 0:02:27.5]} 19... a4
{[%clk 0:02:42.3]} 20. Ba2 {[%clk 0:02:27.6]} 20... Rb8 {[%clk 0:02:40.4]} 21.
Bc5 {[%clk 0:02:22]} 21... Qe8 {[%clk 0:02:34.6]} 22. Bb4 {[%clk 0:02:20.6]}
22... Nf7 {[%clk 0:02:21.1]} 23. Qc3 {[%clk 0:02:17.3]} 23... Qd8 {[%clk
0:02:17.3]} 24. Qc5 {[%clk 0:02:13.8]} 24... Nd6 {[%clk 0:02:16]} 25. Bc3 {[%clk
0:02:05.3]} 25... Nf7 {[%clk 0:02:14.4]} 26. Nb4 {[%clk 0:02:02.4]} 26... Nd6
{[%clk 0:02:09]} 27. Nc6 {[%clk 0:01:53.9]} 27... Qe8 {[%clk 0:02:03.3]} 28.
Nxe5 {[%clk 0:01:36]} 28... b4 {[%clk 0:01:57.8]} 29. axb4 {[%clk 0:01:31.9]}
29... Nb5 {[%clk 0:01:55.4]} 30. Nc6 {[%clk 0:00:40.2]} 30... Nxc3+ {[%clk
0:01:51.4]} 31. bxc3 {[%clk 0:00:40.6]} 31... Bxc6 {[%clk 0:01:51.2]} 32. dxc6
{[%clk 0:00:41.5]} 32... Rf6 {[%clk 0:01:46.8]} 33. Rd7 {[%clk 0:00:36.1]} 33...
Rd6 {[%clk 0:01:38.7]} 34. Rd1 {[%clk 0:00:24.7]} 34... Rb6 {[%clk 0:01:34.3]}
35. R1xd6 {[%clk 0:00:20.6]} 35... exd6 {[%clk 0:01:34.1]} 36. Qc4 {[%clk
0:00:20.7]} 36... Qe5 {[%clk 0:01:18.4]} 37. Rxc7 {[%clk 0:00:14.8]} 37... Qxc3
{[%clk 0:01:10.7]} 38. Qg8# {[%clk 0:00:14.3]} 1-0

[Event "Late-Titled-Tuesday-Blitz-July-09-2024"]
[Site "Chess.com"]
[Date "2024.07.09"]
[Round "1"]
[White "ChessLover0108"]
[Black "ninjatrick"]
[Result "1-0"]
[WhiteElo "2938"]
[BlackElo "2493"]
[TimeControl "180+1"]
[EndTime "14:06:15 PDT"]
[Termination "ChessLover0108 won by checkmate"]

1. d4 {[%clk 0:02:58.2]} 1... d5 {[%clk 0:02:59.4]} 2. Nf3 {[%clk 0:02:58.5]}
2... Nf6 {[%clk 0:02:59.5]} 3. c4 {[%clk 0:02:56.9]} 3... e6 {[%clk 0:02:59.4]}
4. e3 {[%clk 0:02:57.8]} 4... c6 {[%clk 0:02:55.8]} 5. Bd3 {[%clk 0:02:55.9]}
5... Nbd7 {[%clk 0:02:55.8]} 6. b3 {[%clk 0:02:56.2]} 6... Bb4+ {[%clk
0:02:47.8]} 7. Nbd2 {[%clk 0:02:35.7]} 7... Bc3 {[%clk 0:02:36]} 8. Rb1 {[%clk
0:02:32.1]} 8... O-O {[%clk 0:02:35.4]} 9. Qc2 {[%clk 0:02:32]} 9... Bb4 {[%clk
0:02:32.4]} 10. O-O {[%clk 0:02:29.9]} 10... Bd6 {[%clk 0:02:25.4]} 11. e4
{[%clk 0:02:28.1]} 11... dxe4 {[%clk 0:02:24.5]} 12. Nxe4 {[%clk 0:02:29]} 12...
Nxe4 {[%clk 0:02:25.4]} 13. Bxe4 {[%clk 0:02:29.9]} 13... Nf6 {[%clk 0:02:26.2]}
14. Bd3 {[%clk 0:02:27.5]} 14... b6 {[%clk 0:02:18.4]} 15. Bb2 {[%clk
0:02:20.5]} 15... Bb7 {[%clk 0:02:16.1]} 16. Rbd1 {[%clk 0:02:21.4]} 16... Qe7
{[%clk 0:02:13.7]} 17. Rfe1 {[%clk 0:02:19.8]} 17... h6 {[%clk 0:01:54.6]} 18.
Ne5 {[%clk 0:01:55.9]} 18... c5 {[%clk 0:01:42.5]} 19. d5 {[%clk 0:01:53.4]}
19... Bxe5 {[%clk 0:01:34.6]} 20. Rxe5 {[%clk 0:01:49]} 20... Nd7 {[%clk
0:01:23.8]} 21. Re3 {[%clk 0:01:48.4]} 21... Rad8 {[%clk 0:01:12.4]} 22. Rde1
{[%clk 0:01:44.4]} 22... Nf6 {[%clk 0:00:48.9]} 23. Qc3 {[%clk 0:01:39.2]} 23...
Qd6 {[%clk 0:00:46.5]} 24. Rg3 {[%clk 0:01:34.6]} 24... e5 {[%clk 0:00:39.9]}
25. Rxe5 {[%clk 0:01:34.7]} 25... Kh8 {[%clk 0:00:32.9]} 26. Rxg7 {[%clk
0:01:12.3]} 26... Kxg7 {[%clk 0:00:29]} 27. Rf5 {[%clk 0:01:12.9]} 27... Kg8
{[%clk 0:00:29.7]} 28. Rxf6 {[%clk 0:01:12.6]} 28... Qe7 {[%clk 0:00:29.9]} 29.
h3 {[%clk 0:00:43]} 29... Rde8 {[%clk 0:00:28.9]} 30. Rg6+ {[%clk 0:00:41.9]}
30... fxg6 {[%clk 0:00:29.2]} 31. Qh8+ {[%clk 0:00:42]} 31... Kf7 {[%clk
0:00:29.9]} 32. Qg7# {[%clk 0:00:42.9]} 1-0

[Event "Late-Titled-Tuesday-Blitz-July-09-2024"]
[Site "Chess.com"]
[Date "2024.07.09"]
[Round "1"]
[White "Franmu14"]
[Black "JunjiCol"]
[Result "0-1"]
[WhiteElo "2706"]
[BlackElo "2415"]
[TimeControl "180+1"]
[EndTime "14:06:16 PDT"]
[Termination "JunjiCol won by resignation"]

1. e4 {[%clk 0:03:00.9]} 1... e5 {[%clk 0:02:59.2]} 2. Nc3 {[%clk 0:03:01.6]}
2... Bc5 {[%clk 0:02:56]} 3. Nf3 {[%clk 0:03:02.5]} 3... d6 {[%clk 0:02:53.9]}
4. d4 {[%clk 0:03:02.4]} 4... exd4 {[%clk 0:02:54]} 5. Nxd4 {[%clk 0:03:03.1]}
5... Nf6 {[%clk 0:02:54]} 6. Bg5 {[%clk 0:03:01.3]} 6... h6 {[%clk 0:02:53.1]}
7. Bh4 {[%clk 0:03:00.2]} 7... O-O {[%clk 0:02:52.2]} 8. Qd3 {[%clk 0:02:57.6]}
8... Nc6 {[%clk 0:02:49.5]} 9. Nxc6 {[%clk 0:02:57]} 9... bxc6 {[%clk
0:02:50.4]} 10. O-O-O {[%clk 0:02:57.1]} 10... Qe7 {[%clk 0:02:49.9]} 11. Kb1
{[%clk 0:02:55.2]} 11... Rb8 {[%clk 0:02:49.8]} 12. Ka1 {[%clk 0:02:54.2]} 12...
Qe5 {[%clk 0:02:48.4]} 13. Bg3 {[%clk 0:02:52.9]} 13... Qe7 {[%clk 0:02:40.2]}
14. f4 {[%clk 0:02:52.5]} 14... Ng4 {[%clk 0:02:36]} 15. Be2 {[%clk 0:02:52.3]}
15... Ne3 {[%clk 0:02:35.8]} 16. Rb1 {[%clk 0:02:49.7]} 16... Ba6 {[%clk
0:02:34.7]} 17. Qd2 {[%clk 0:02:47.3]} 17... Bxe2 {[%clk 0:02:29.5]} 18. Qxe2
{[%clk 0:02:48.2]} 18... Bd4 {[%clk 0:02:27]} 19. Be1 {[%clk 0:02:42.3]} 19...
Bxc3 {[%clk 0:02:25.9]} 20. Bxc3 {[%clk 0:02:43.2]} 20... Qxe4 {[%clk
0:02:26.1]} 21. Rbc1 {[%clk 0:02:41.7]} 21... Rfe8 {[%clk 0:02:18.7]} 22. Rhe1
{[%clk 0:02:41]} 22... Qxg2 {[%clk 0:02:10.2]} 23. Qd3 {[%clk 0:02:25.6]} 23...
Qe4 {[%clk 0:01:56.7]} 24. Rg1 {[%clk 0:02:10.9]} 24... g6 {[%clk 0:01:33.7]}
25. Qd2 {[%clk 0:02:04.3]} 25... Nd5 {[%clk 0:01:31.9]} 26. f5 {[%clk
0:01:58.8]} 26... Qxf5 {[%clk 0:01:27.4]} 27. Bd4 {[%clk 0:01:50]} 27... Qf4
{[%clk 0:01:26]} 28. Qd3 {[%clk 0:01:44.1]} 28... Nb4 {[%clk 0:01:25.7]} 29.
Rxg6+ {[%clk 0:00:45.6]} 29... Kf8 {[%clk 0:01:21.1]} 30. Bg7+ {[%clk
0:00:46.1]} 30... Ke7 {[%clk 0:01:21.3]} 31. Re1+ {[%clk 0:00:43.1]} 31... Kd7
{[%clk 0:01:17.6]} 32. Qh3+ {[%clk 0:00:41.5]} 32... f5 {[%clk 0:01:14.4]} 33.
Rxe8 {[%clk 0:00:31.1]} 33... Rxe8 {[%clk 0:01:15.3]} 34. Rg1 {[%clk 0:00:28.9]}
34... Nxc2+ {[%clk 0:01:13.4]} 35. Kb1 {[%clk 0:00:28.7]} 35... Qe4 {[%clk
0:01:10.9]} 36. Qg2 {[%clk 0:00:22.3]} 36... Na3+ {[%clk 0:01:03]} 37. Ka1
{[%clk 0:00:21]} 37... Qxg2 {[%clk 0:01:03]} 0-1

[Event "Late-Titled-Tuesday-Blitz-July-09-2024"]
[Site "Chess.com"]
[Date "2024.07.09"]
[Round "1"]
[White "urano56"]
[Black "NikitaShnadrygin"]
[Result "1-0"]
[WhiteElo "2415"]
[BlackElo "2706"]
[TimeControl "180+1"]
[EndTime "14:06:16 PDT"]
[Termination "urano56 won by resignation"]

1. Nf3 {[%clk 0:02:49.8]} 1... Nf6 {[%clk 0:02:58.9]} 2. d4 {[%clk 0:02:50]}
2... g6 {[%clk 0:02:59.8]} 3. c4 {[%clk 0:02:50.4]} 3... Bg7 {[%clk 0:03:00.2]}
4. Nc3 {[%clk 0:02:51.3]} 4... d5 {[%clk 0:03:00.7]} 5. cxd5 {[%clk 0:02:51]}
5... Nxd5 {[%clk 0:03:01.6]} 6. e4 {[%clk 0:02:51.8]} 6... Nxc3 {[%clk
0:02:58.3]} 7. bxc3 {[%clk 0:02:52.7]} 7... c5 {[%clk 0:02:44.5]} 8. Be3 {[%clk
0:02:50.3]} 8... cxd4 {[%clk 0:02:34.6]} 9. cxd4 {[%clk 0:02:48.1]} 9... Bg4
{[%clk 0:02:34.4]} 10. Rc1 {[%clk 0:02:47.1]} 10... Qa5+ {[%clk 0:02:29.3]} 11.
Qd2 {[%clk 0:02:47.1]} 11... Qxd2+ {[%clk 0:02:28.2]} 12. Nxd2 {[%clk
0:02:46.5]} 12... O-O {[%clk 0:02:23.2]} 13. Bc4 {[%clk 0:02:43]} 13... Nc6
{[%clk 0:02:22.1]} 14. f3 {[%clk 0:02:42.9]} 14... Bd7 {[%clk 0:02:20.4]} 15. d5
{[%clk 0:02:42.9]} 15... Ne5 {[%clk 0:02:16.7]} 16. Be2 {[%clk 0:02:42.9]} 16...
Rac8 {[%clk 0:02:13.9]} 17. O-O {[%clk 0:02:42.1]} 17... a6 {[%clk 0:02:10.8]}
18. Nb3 {[%clk 0:02:35.5]} 18... Bb5 {[%clk 0:01:58.3]} 19. Bxb5 {[%clk
0:02:31.3]} 19... axb5 {[%clk 0:01:59.2]} 20. Bc5 {[%clk 0:02:30.6]} 20... Nd3
{[%clk 0:01:42.7]} 21. Bxe7 {[%clk 0:02:29.4]} 21... Nxc1 {[%clk 0:00:54.8]} 22.
Bxf8 {[%clk 0:02:28.9]} 22... Ne2+ {[%clk 0:00:46.7]} 23. Kf2 {[%clk 0:02:28.1]}
23... Rc2 {[%clk 0:00:46.8]} 24. Bxg7 {[%clk 0:02:26.1]} 24... Nf4+ {[%clk
0:00:41.6]} 25. Kg3 {[%clk 0:02:15.2]} 25... Nh5+ {[%clk 0:00:40.5]} 26. Kh3
{[%clk 0:02:15.6]} 26... Kxg7 {[%clk 0:00:40.3]} 27. g3 {[%clk 0:02:11.4]} 27...
Rxa2 {[%clk 0:00:39.2]} 28. d6 {[%clk 0:02:11.2]} 28... Nf6 {[%clk 0:00:39.4]}
29. e5 {[%clk 0:02:01.2]} 29... Nd7 {[%clk 0:00:37.8]} 30. f4 {[%clk 0:02:01.5]}
30... b4 {[%clk 0:00:33.5]} 31. Rc1 {[%clk 0:02:00.1]} 31... Rb2 {[%clk
0:00:24.8]} 32. Nc5 {[%clk 0:01:58.9]} 32... Nxc5 {[%clk 0:00:21]} 33. Rxc5
{[%clk 0:01:58.4]} 33... Rd2 {[%clk 0:00:21.7]} 34. Rb5 {[%clk 0:01:57.9]} 34...
Rd4 {[%clk 0:00:22.2]} 35. Rxb7 {[%clk 0:01:57.8]} 35... Kf8 {[%clk 0:00:22.8]}
36. Kg4 {[%clk 0:01:54.3]} 36... h6 {[%clk 0:00:21.9]} 37. h4 {[%clk 0:01:52.6]}
37... Ke8 {[%clk 0:00:20.1]} 38. h5 {[%clk 0:01:51.9]} 38... gxh5+ {[%clk
0:00:20.7]} 39. Kxh5 {[%clk 0:01:52.1]} 39... Rd3 {[%clk 0:00:21.6]} 40. Kg4
{[%clk 0:01:48.3]} 40... h5+ {[%clk 0:00:17.6]} 41. Kh4 {[%clk 0:01:47.4]} 41...
b3 {[%clk 0:00:16.6]} 42. Re7+ {[%clk 0:01:46.7]} 42... Kf8 {[%clk 0:00:16.8]}
43. Rb7 {[%clk 0:01:46.3]} 43... Ke8 {[%clk 0:00:17.3]} 44. g4 {[%clk
0:01:45.1]} 44... hxg4 {[%clk 0:00:17.1]} 45. Kxg4 {[%clk 0:01:46]} 45... Kf8
{[%clk 0:00:15.6]} 46. Kf5 {[%clk 0:01:46.2]} 46... Ke8 {[%clk 0:00:13.9]} 47.
Kf6 {[%clk 0:01:46.1]} 47... Rf3 {[%clk 0:00:13.7]} 48. f5 {[%clk 0:01:45.4]}
48... Kd8 {[%clk 0:00:09.5]} 49. Rxf7 {[%clk 0:01:41]} 1-0

[Event "Late-Titled-Tuesday-Blitz-July-09-2024"]
[Site "Chess.com"]
[Date "2024.07.09"]
[Round "1"]
[White "TheMagician"]
[Black "ReinisUz"]
[Result "1/2-1/2"]
[WhiteElo "2110"]
[BlackElo "2547"]
[TimeControl "180+1"]
[EndTime "14:06:16 PDT"]
[Termination "Game drawn by repetition"]

1. e4 {[%clk 0:02:58.6]} 1... c5 {[%clk 0:02:57.6]} 2. Nf3 {[%clk 0:02:57.9]}
2... d6 {[%clk 0:02:57.5]} 3. d4 {[%clk 0:02:57.8]} 3... cxd4 {[%clk 0:02:57.6]}
4. Nxd4 {[%clk 0:02:55.7]} 4... Nf6 {[%clk 0:02:58.1]} 5. Nc3 {[%clk 0:02:54.9]}
5... g6 {[%clk 0:02:58.4]} 6. Be2 {[%clk 0:02:54]} 6... Nc6 {[%clk 0:02:58.1]}
7. Be3 {[%clk 0:02:49.9]} 7... Bg7 {[%clk 0:02:52.3]} 8. O-O {[%clk 0:02:49.7]}
8... O-O {[%clk 0:02:51.9]} 9. Qd2 {[%clk 0:02:48.8]} 9... Ng4 {[%clk
0:02:47.2]} 10. Bxg4 {[%clk 0:02:48.3]} 10... Bxg4 {[%clk 0:02:46.1]} 11. Nxc6
{[%clk 0:02:25.2]} 11... bxc6 {[%clk 0:02:47]} 12. Bh6 {[%clk 0:02:18.7]} 12...
Qb6 {[%clk 0:02:42.4]} 13. Bxg7 {[%clk 0:02:17.3]} 13... Kxg7 {[%clk 0:02:42.6]}
14. Na4 {[%clk 0:02:07.1]} 14... Qb5 {[%clk 0:02:40]} 15. b3 {[%clk 0:02:06.5]}
15... Be6 {[%clk 0:02:33.2]} 16. c4 {[%clk 0:02:04.1]} 16... Qe5 {[%clk
0:02:22.4]} 17. Rae1 {[%clk 0:02:02.7]} 17... c5 {[%clk 0:02:08.2]} 18. f4
{[%clk 0:01:59.8]} 18... Qh5 {[%clk 0:02:08.2]} 19. e5 {[%clk 0:01:39.4]} 19...
Rad8 {[%clk 0:02:02.7]} 20. Qf2 {[%clk 0:01:28.3]} 20... Bd7 {[%clk 0:01:58.5]}
21. exd6 {[%clk 0:01:17.6]} 21... exd6 {[%clk 0:01:59.4]} 22. Nc3 {[%clk
0:01:17.6]} 22... Bc6 {[%clk 0:01:59]} 23. Re7 {[%clk 0:01:08.9]} 23... Rde8
{[%clk 0:01:46.4]} 24. Rfe1 {[%clk 0:01:08.1]} 24... Rxe7 {[%clk 0:01:42.3]} 25.
Rxe7 {[%clk 0:01:08]} 25... Re8 {[%clk 0:01:37.7]} 26. Rxe8 {[%clk 0:01:06.8]}
26... Bxe8 {[%clk 0:01:38.6]} 27. Nd5 {[%clk 0:01:05.9]} 27... Qd1+ {[%clk
0:01:29.3]} 28. Qf1 {[%clk 0:01:05.1]} 28... Qd4+ {[%clk 0:01:28.6]} 29. Qf2
{[%clk 0:01:03.2]} 29... Qa1+ {[%clk 0:01:28.3]} 30. Qf1 {[%clk 0:01:01.4]}
30... Qxa2 {[%clk 0:01:26.3]} 31. Qc1 {[%clk 0:00:54.7]} 31... Bc6 {[%clk
0:00:40.3]} 32. Qc3+ {[%clk 0:00:52]} 32... Kh6 {[%clk 0:00:40]} 33. Qh3+ {[%clk
0:00:49.2]} 33... Kg7 {[%clk 0:00:40]} 34. Qc3+ {[%clk 0:00:47.3]} 34... Kh6
{[%clk 0:00:39.2]} 35. Qh3+ {[%clk 0:00:45.1]} 35... Kg7 {[%clk 0:00:39.3]} 36.
Qc3+ {[%clk 0:00:44.1]} 1/2-1/2

[Event "Late-Titled-Tuesday-Blitz-July-09-2024"]
[Site "Chess.com"]
[Date "2024.07.09"]
[Round "1"]
[White "praveenb2002"]
[Black "ChessLebaneseSalah"]
[Result "1-0"]
[WhiteElo "2845"]
[BlackElo "2455"]
[TimeControl "180+1"]
[EndTime "14:06:24 PDT"]
[Termination "praveenb2002 won on time"]

1. c4 {[%clk 0:02:54.8]} 1... Nf6 {[%clk 0:02:55.9]} 2. Nc3 {[%clk 0:02:50.6]}
2... e6 {[%clk 0:02:55.1]} 3. e4 {[%clk 0:02:49.3]} 3... Nc6 {[%clk 0:02:48]} 4.
d4 {[%clk 0:02:45.8]} 4... Bb4 {[%clk 0:02:37.3]} 5. e5 {[%clk 0:02:46]} 5...
Ne4 {[%clk 0:02:35.6]} 6. Qd3 {[%clk 0:02:46.7]} 6... d5 {[%clk 0:02:23.9]} 7.
a3 {[%clk 0:02:41.5]} 7... Bxc3+ {[%clk 0:02:15.6]} 8. bxc3 {[%clk 0:02:40.5]}
8... O-O {[%clk 0:02:12.1]} 9. Ne2 {[%clk 0:02:25.8]} 9... f6 {[%clk 0:01:33.7]}
10. f3 {[%clk 0:02:24.2]} 10... fxe5 {[%clk 0:01:33]} 11. fxe4 {[%clk
0:02:20.4]} 11... exd4 {[%clk 0:01:24.4]} 12. cxd4 {[%clk 0:02:16.1]} 12... Qh4+
{[%clk 0:01:13.1]} 13. Ng3 {[%clk 0:02:14.8]} 13... Bd7 {[%clk 0:01:07.3]} 14.
Be3 {[%clk 0:02:02.4]} 14... Rae8 {[%clk 0:01:00.7]} 15. cxd5 {[%clk 0:01:56.3]}
15... exd5 {[%clk 0:00:58.5]} 16. e5 {[%clk 0:01:56.8]} 16... Bg4 {[%clk
0:00:48]} 17. Be2 {[%clk 0:01:33.6]} 17... Bf5 {[%clk 0:00:39.7]} 18. Qc3 {[%clk
0:01:26.4]} 18... Kh8 {[%clk 0:00:29.1]} 19. O-O-O {[%clk 0:01:23.9]} 19... Bg6
{[%clk 0:00:25.9]} 20. Bf3 {[%clk 0:01:18.2]} 20... Ne7 {[%clk 0:00:19.9]} 21.
Qd2 {[%clk 0:01:12.3]} 21... h6 {[%clk 0:00:15.7]} 22. Kb2 {[%clk 0:01:03.8]}
22... c5 {[%clk 0:00:15.4]} 23. dxc5 {[%clk 0:01:01.5]} 23... Rd8 {[%clk
0:00:14.9]} 24. Qd4 {[%clk 0:00:59.1]} 24... Qxd4+ {[%clk 0:00:09.7]} 25. Bxd4
{[%clk 0:00:58.3]} 25... Nc6 {[%clk 0:00:05.3]} 26. Rhe1 {[%clk 0:00:57.1]}
26... Rfe8 {[%clk 0:00:04.6]} 27. e6 {[%clk 0:00:54.8]} 27... Re7 {[%clk
0:00:03.4]} 28. Be5 {[%clk 0:00:48.5]} 28... Rde8 {[%clk 0:00:02.5]} 29. Bxd5
{[%clk 0:00:47.9]} 1-0

[Event "Late-Titled-Tuesday-Blitz-July-09-2024"]
[Site "Chess.com"]
[Date "2024.07.09"]
[Round "1"]
[White "rasmussvane"]
[Black "Redzishchess"]
[Result "1-0"]
[WhiteElo "2917"]
[BlackElo "2477"]
[TimeControl "180+1"]
[EndTime "14:06:31 PDT"]
[Termination "rasmussvane won by resignation"]

1. Nf3 {[%clk 0:02:58.3]} 1... Nf6 {[%clk 0:02:46]} 2. g3 {[%clk 0:02:58.2]}
2... b6 {[%clk 0:02:45.5]} 3. Bg2 {[%clk 0:02:58.4]} 3... Bb7 {[%clk 0:02:45.5]}
4. O-O {[%clk 0:02:58.1]} 4... g6 {[%clk 0:02:45.7]} 5. c4 {[%clk 0:02:58]} 5...
Bg7 {[%clk 0:02:46.2]} 6. d4 {[%clk 0:02:58.3]} 6... O-O {[%clk 0:02:46.5]} 7.
Re1 {[%clk 0:02:58.4]} 7... d6 {[%clk 0:01:56]} 8. Qc2 {[%clk 0:02:57.6]} 8...
Nbd7 {[%clk 0:01:50.5]} 9. e4 {[%clk 0:02:56.4]} 9... e5 {[%clk 0:01:50.9]} 10.
Nc3 {[%clk 0:02:51.8]} 10... Re8 {[%clk 0:01:43.6]} 11. d5 {[%clk 0:02:40]}
11... a5 {[%clk 0:01:39.9]} 12. b3 {[%clk 0:02:37.8]} 12... Nc5 {[%clk
0:01:38.1]} 13. Be3 {[%clk 0:02:34]} 13... Rf8 {[%clk 0:01:33.7]} 14. a3 {[%clk
0:02:31.1]} 14... Qe7 {[%clk 0:01:23]} 15. b4 {[%clk 0:02:30.3]} 15... axb4
{[%clk 0:01:22.5]} 16. axb4 {[%clk 0:02:31.2]} 16... Ncd7 {[%clk 0:01:23.4]} 17.
h3 {[%clk 0:02:27.3]} 17... Nh5 {[%clk 0:00:42]} 18. Nb5 {[%clk 0:02:26.6]}
18... c6 {[%clk 0:00:27.1]} 19. dxc6 {[%clk 0:02:22.1]} 19... Bxc6 {[%clk
0:00:28]} 20. Nc3 {[%clk 0:02:14]} 20... f5 {[%clk 0:00:26.6]} 21. Bg5 {[%clk
0:01:45]} 21... Bf6 {[%clk 0:00:19.8]} 22. Bh6 {[%clk 0:01:41.5]} 22... Bg7
{[%clk 0:00:20]} 23. Bxg7 {[%clk 0:01:38.2]} 23... Nxg7 {[%clk 0:00:16.6]} 24.
Qd3 {[%clk 0:01:36.2]} 24... fxe4 {[%clk 0:00:13.2]} 25. Nxe4 {[%clk 0:01:36.1]}
25... Nf5 {[%clk 0:00:12.6]} 26. Rxa8 {[%clk 0:01:28.5]} 26... Bxa8 {[%clk
0:00:12.3]} 27. Rd1 {[%clk 0:01:18.3]} 27... Nf6 {[%clk 0:00:07.3]} 28. Nxd6
{[%clk 0:00:38.4]} 28... Rd8 {[%clk 0:00:06]} 29. Nxf5 {[%clk 0:00:36.5]} 1-0